bitfinex/quotes_SOLUSD_20241021
["timestamp","ask_amount","ask_price","bid_price","bid_amount"]
[1729490335420,23.776884,169.65,169.64,1.47442171]
[1729490337738,23.776884,169.65,169.64,1.47442319]
[1729490340348,59.146884,169.65,169.64,1.47442319]
[1729490340929,59.146884,169.65,169.64,1.47441634]
[1729490341243,59.146884,169.65,169.56,0.5988291]
[1729490341545,59.146884,169.65,169.64,1.47441634]
[1729490341731,23.776884,169.67,169.64,1.47441634]
[1729490341940,23.776884,169.67,169.65,1.47441634]
[1729490342148,43.776884,169.67,169.66,1.47441634]
[1729490342644,15.326,169.69,169.66,1.47441634]
[1729490342838,15.326,169.69,169.56,0.5988291]
[1729490342839,15.326,169.69,169.67,1.47441634]
[1729490343147,35.326,169.69,169.68,1.47441634]
[1729490343927,59.102884,169.69,169.68,1.47441634]
[1729490347438,59.102884,169.69,169.68,1.47414851]
[1729490350456,94.472884,169.69,169.68,1.47414851]
[1729490351454,23.776884,169.68,169.58,2.4201]
[1729490351750,23.776884,169.68,169.59,1.47421479]
[1729490351951,23.776884,169.68,169.6,1.47421479]
[1729490352125,23.776884,169.68,169.61,1.47421479]
[1729490352329,23.776884,169.68,169.62,1.47421479]
[1729490352641,23.776884,169.68,169.63,1.47421479]
[1729490352836,23.776884,169.68,169.64,1.47421479]
[1729490353042,23.776884,169.68,169.65,1.47421479]
[1729490353241,23.776884,169.68,169.66,1.47421479]
[1729490353451,23.776884,169.68,169.67,1.47421479]
[1729490360558,59.146884,169.68,169.67,1.47421479]
[1729490361055,23.776884,169.68,169.67,1.47421479]
[1729490361557,15.326,169.69,169.67,1.47421479]
[1729490361738,23.776884,169.68,169.58,2.4201]
[1729490361941,11.23026239,169.71,169.58,2.4201]
[1729490362138,11.23026239,169.71,169.59,1.47414349]
[1729490362340,11.23026239,169.71,169.6,1.47414349]
[1729490362536,11.23026239,169.71,169.61,1.47414349]
[1729490362745,11.23026239,169.71,169.62,1.47414349]
[1729490362954,11.23026239,169.71,169.63,1.47414349]
[1729490363151,11.23026239,169.71,169.64,1.47414349]
[1729490363361,23.776884,169.7,169.65,1.47414349]
[1729490363577,23.776884,169.7,169.66,1.47414349]
[1729490363753,23.776884,169.7,169.67,1.47414349]
[1729490364065,23.776884,169.7,169.58,2.4201]
[1729490364066,23.776884,169.7,169.68,1.47414349]
[1729490364272,23.776884,169.7,169.69,1.47414349]
[1729490371659,23.776884,169.7,169.58,2.4201]
[1729490371660,0.1,169.66,169.47,5.68877094]
[1729490371860,0.1,169.66,169.52,23.776884]
[1729490372036,0.1,169.66,169.5,23.776884]
[1729490372436,0.1,169.66,169.52,23.776884]
[1729490373736,0.1,169.66,169.55,20.0]
[1729490374157,0.2,169.67,169.56,23.776884]
[1729490374664,0.1,169.66,169.56,23.776884]
[1729490378265,0.1,169.67,169.56,23.776884]
[1729490378557,0.1,169.66,169.56,23.776884]
[1729490379767,0.1,169.67,169.56,23.776884]
[1729490380142,0.1,169.66,169.56,23.776884]
[1729490380769,0.2,169.67,169.56,23.776884]
[1729490381248,0.1,169.66,169.56,23.776884]
[1729490381964,0.2,169.67,169.56,23.776884]
[1729490382866,0.1,169.66,169.56,23.776884]
[1729490383770,0.1,169.66,169.57,1.47412945]
[1729490384169,0.1,169.66,169.58,1.47412945]
[1729490384349,0.1,169.66,169.59,1.47412945]
[1729490384551,0.1,169.66,169.6,1.47412945]
[1729490384870,0.1,169.66,169.61,1.47412945]
[1729490385059,0.2,169.67,169.62,1.47412945]
[1729490385252,0.2,169.67,169.63,1.47412945]
[1729490385454,0.2,169.67,169.64,1.47412547]
[1729490385674,0.1,169.66,169.65,1.47412547]
[1729490385853,0.2,169.67,169.65,1.47412547]
[1729490386174,0.2,169.67,169.66,1.47412547]
[1729490388768,29.90867121,169.7,169.66,1.47412547]
[1729490388769,0.1,169.69,169.66,1.47412547]
[1729490388953,0.1,169.7,169.67,1.47412547]
[1729490389147,0.1,169.7,169.68,1.47412547]
[1729490389349,0.1,169.7,169.69,1.47412547]
[1729490390383,0.2,169.71,169.69,1.47412547]
[1729490390568,0.2,169.71,169.7,1.47412547]
[1729490391075,0.1,169.71,169.7,1.47412547]
[1729490391255,0.2,169.71,169.7,1.47412547]
[1729490393959,35.886384,169.71,169.7,1.47412547]
[1729490394177,29.993984,169.71,169.7,1.47412547]
[1729490396149,0.1,169.63,169.53,2.49891461]
[1729490396356,0.1,169.63,169.53,1.4742]
[1729490397771,0.1,169.62,169.53,1.4742]
[1729490398471,0.1,169.63,169.53,1.4742]
[1729490398861,0.1,169.62,169.53,1.4742]
[1729490399462,0.1,169.62,169.53,4.40912681]
[1729490400263,0.1,169.63,169.53,4.40912681]
[1729490400466,0.2,169.63,169.53,4.40912681]
[1729490400964,0.2,169.61,169.5,20.0]
[1729490401671,0.1,169.59,169.49,8.48]
[1729490401871,0.2,169.6,169.49,11.36972409]
[1729490402370,0.1,169.59,169.49,11.36972409]
[1729490402578,0.2,169.6,169.49,2.88972409]
[1729490402756,0.2,169.6,169.48,1.4742]
[1729490403153,0.2,169.61,169.48,1.4742]
[1729490403372,0.2,169.63,169.51,23.776884]
[1729490403568,0.2,169.62,169.51,23.776884]
[1729490403754,0.1,169.62,169.51,23.776884]
[1729490403954,0.2,169.63,169.51,23.776884]
[1729490404155,0.2,169.64,169.51,23.776884]
[1729490404362,0.1,169.63,169.52,20.0]
[1729490404557,0.2,169.64,169.52,20.0]
[1729490404756,22.3219,169.65,169.53,23.776884]
[1729490404985,22.3219,169.65,169.54,20.0]
[1729490404986,22.1219,169.65,169.54,20.0]
[1729490405389,22.1219,169.65,169.54,21.4742]
[1729490405681,15.9176,169.65,169.54,21.4742]
[1729490406069,15.8176,169.65,169.55,23.776884]
[1729490408481,22.5727,169.69,169.57,23.776884]
[1729490408681,22.7727,169.69,169.58,20.0]
[1729490408859,22.6727,169.69,169.58,20.0]
[1729490409065,6.12816108,169.73,169.61,23.776884]
[1729490409066,0.1,169.72,169.61,23.776884]
[1729490409377,0.2,169.72,169.61,23.776884]
[1729490409581,0.1,169.7,169.6,20.0]
[1729490409882,0.2,169.7,169.58,20.0]
[1729490410068,0.2,169.68,169.57,23.776884]
[1729490410262,0.1,169.68,169.57,23.776884]
[1729490410471,16.6534,169.66,169.55,2.99077013]
[1729490410672,16.7534,169.66,169.56,0.4]
[1729490410973,16.7534,169.66,169.54,1.4742]
[1729490411163,16.7534,169.66,169.54,4.36602603]
[1729490411363,0.1,169.65,169.54,1.4742]
[1729490412677,0.2,169.65,169.54,1.4742]
[1729490413079,0.1,169.64,169.54,1.4742]
[1729490413387,0.1,169.62,169.51,23.776884]
[1729490413590,0.1,169.6,169.5,1.4742]
[1729490413890,0.1,169.61,169.5,4.44759932]
[1729490415077,0.1,169.61,169.51,23.776884]
[1729490416264,0.2,169.61,169.51,23.776884]
[1729490416582,15.5666,169.6,169.49,20.0]
[1729490417876,15.6666,169.6,169.49,23.776884]
[1729490418083,0.1,169.59,169.47,20.0]
[1729490418303,0.1,169.59,169.47,28.48]
[1729490418784,0.1,169.56,169.47,28.48]
[1729490418987,15.5666,169.6,169.47,28.48]
[1729490418988,0.1,169.57,169.47,28.48]
[1729490419285,0.1,169.57,169.45,4.41479153]
[1729490419286,0.1,169.58,169.45,24.41479153]
[1729490419493,0.1,169.58,169.46,8.48]
[1729490419785,0.1,169.57,169.47,20.0]
[1729490420974,0.1,169.54,169.44,6.11980151]
[1729490421173,6.1647,169.56,169.45,8.48]
[1729490421174,6.2647,169.56,169.45,8.48]
[1729490421488,6.1647,169.56,169.43,2.90323708]
[1729490421662,6.1647,169.56,169.4,16.07224383]
[1729490421863,6.1647,169.56,169.41,10.98670863]
[1729490422077,6.1647,169.56,169.42,8.48]
[1729490422387,6.2647,169.56,169.43,43.776884]
[1729490423175,6.2647,169.56,169.45,43.776884]
[1729490424667,0.1,169.54,169.45,43.776884]
[1729490424865,0.1,169.54,169.45,20.0]
[1729490425868,0.1,169.55,169.41,21.02548998]
[1729490426070,0.1,169.55,169.43,43.776884]
[1729490426382,6.2647,169.56,169.43,43.776884]
[1729490427283,6.1647,169.56,169.43,43.776884]
[1729490428070,0.1,169.55,169.43,43.776884]
[1729490428779,15.5738,169.52,169.42,8.48]
[1729490428993,15.5738,169.52,169.4,11.32705974]
[1729490429369,15.5738,169.52,169.41,1.02574773]
[1729490429571,15.5738,169.52,169.4,11.32705974]
[1729490429984,15.5738,169.52,169.42,23.776884]
[1729490430291,15.5738,169.52,169.4,11.32705974]
[1729490430292,15.5738,169.52,169.45,20.0]
[1729490433487,15.5738,169.52,169.44,20.0]
[1729490433795,15.5738,169.52,169.43,20.0]
[1729490437383,15.5738,169.52,169.45,20.0]
[1729490438296,15.6738,169.52,169.43,20.0]
[1729490442591,15.7738,169.52,169.42,23.776884]
[1729490442993,15.6738,169.52,169.42,23.776884]
[1729490443185,15.7738,169.52,169.42,23.776884]
[1729490446619,0.1,169.51,169.41,21.02557293]
[1729490447995,6.6517,169.5,169.41,21.02557293]
[1729490451811,6.6517,169.5,169.41,20.0]
[1729490456507,0.1,169.49,169.4,11.32705974]
[1729490458903,6.7517,169.5,169.4,11.32705974]
[1729490459103,6.6517,169.5,169.4,11.32705974]
[1729490459604,6.6517,169.5,169.41,43.776884]
[1729490469121,6.6517,169.5,169.41,23.776884]
[1729490469302,6.8517,169.5,169.4,2.9433541]
[1729490469503,6.8517,169.5,169.4,23.776884]
[1729490469699,16.4064,169.49,169.4,23.776884]
[1729490470304,16.5064,169.49,169.39,0.5988291]
[1729490470633,16.5064,169.49,169.39,23.54706772]
[1729490472312,16.4064,169.49,169.39,23.54706772]
[1729490472708,16.5064,169.49,169.39,23.54706772]
[1729490473123,16.4064,169.49,169.4,23.776884]
[1729490475916,16.5064,169.49,169.39,23.54706772]
[1729490476119,2.779e-05,169.41,169.39,23.54706772]
[1729490476322,3.694e-05,169.43,169.39,23.54706772]
[1729490478311,3.694e-05,169.43,169.39,3.54706772]
[1729490478708,15.91333694,169.43,169.39,3.54706772]
[1729490478925,15.91333694,169.43,169.39,0.5988291]
[1729490480631,0.11792579,169.44,169.39,0.5988291]
[1729490480834,2.579e-05,169.44,169.39,0.5988291]
[1729490481533,2.579e-05,169.44,169.4,20.0]
[1729490481931,8.14e-06,169.45,169.4,20.0]
[1729490483321,8.14e-06,169.45,169.42,20.0]
[1729490484436,8.14e-06,169.45,169.39,9.0788291]
[1729490484739,8.14e-06,169.45,169.4,20.0]
[1729490486222,8.14e-06,169.45,169.39,0.5988291]
[1729490487444,15.5311,169.44,169.39,0.5988291]
[1729490487823,21.9177,169.44,169.39,0.5988291]
[1729490492054,8.14e-06,169.45,169.39,0.5988291]
[1729490492228,8.14e-06,169.45,169.4,23.776884]
[1729490492437,8.14e-06,169.45,169.41,20.0]
[1729490492823,8.14e-06,169.45,169.39,9.32923821]
[1729490495632,8.14e-06,169.45,169.4,43.776884]
[1729490496034,0.12118989,169.41,169.4,43.776884]
[1729490496232,0.12118989,169.41,169.4,20.0]
[1729490496454,0.12118989,169.41,169.39,9.32923821]
[1729490499853,0.12118989,169.41,169.4,23.776884]
[1729490500343,0.12118989,169.41,169.39,9.32923821]
[1729490501858,0.12118989,169.41,169.4,43.776884]
[1729490503731,0.12118989,169.41,169.4,50.50168222]
[1729490503948,0.12747316,169.5,169.44,20.0]
[1729490504149,16.4915,169.54,169.47,23.776884]
[1729490506232,16.5915,169.54,169.45,20.0]
[1729490507056,16.6915,169.54,169.45,20.0]
[1729490507456,16.5915,169.54,169.45,20.0]
[1729490507762,16.6915,169.54,169.45,20.0]
[1729490507980,16.5915,169.54,169.45,20.0]
[1729490508141,16.6915,169.54,169.45,20.0]
[1729490508759,15.2716,169.51,169.43,23.776884]
[1729490508949,0.1,169.49,169.42,8.48]
[1729490509839,6.2413,169.48,169.42,8.48]
[1729490510061,16.0367,169.47,169.42,8.48]
[1729490510246,0.1,169.45,169.42,8.48]
[1729490510464,16.0367,169.47,169.34,1.02553831]
[1729490510465,0.1,169.46,169.34,1.02553831]
[1729490510762,0.1,169.45,169.34,7.16000127]
[1729490511135,0.1,169.46,169.34,7.16000127]
[1729490511763,0.1,169.46,169.38,3.02108727]
[1729490512565,0.1,169.45,169.38,3.02108727]
[1729490513148,16.1367,169.47,169.38,3.02108727]
[1729490513373,16.2367,169.47,169.38,3.02108727]
[1729490513680,0.1,169.46,169.38,3.02108727]
[1729490514056,16.0367,169.47,169.38,3.02108727]
[1729490515454,16.1367,169.47,169.38,3.02108727]
[1729490516161,0.12519848,169.4,169.39,29.32923821]
[1729490516464,0.12519848,169.4,169.39,9.32923821]
[1729490517677,0.06079848,169.4,169.39,9.32923821]
[1729490518064,9.848e-05,169.4,169.39,9.32923821]
[1729490519968,9.848e-05,169.4,169.39,0.5988291]
[1729490534086,0.12395516,169.41,169.39,0.5988291]
[1729490535964,0.11090029,169.4,169.39,24.3757131]
[1729490536276,0.11090029,169.4,169.39,44.3757131]
[1729490541599,0.11090029,169.4,169.39,0.5988291]
[1729490542884,0.11090029,169.4,169.39,24.3757131]
[1729490543290,0.11090029,169.4,169.39,44.3757131]
[1729490544182,0.01951564,169.4,169.39,44.3757131]
[1729490545288,0.01951564,169.4,169.39,52.8557131]
[1729490545518,0.01951564,169.4,169.39,65.26928226]
[1729490546385,0.12347399,169.41,169.4,50.50168222]
[1729490546586,14.96797796,169.49,169.4,56.19045316]
[1729490546781,6.5269,169.57,169.4,60.45236357]
[1729490546982,0.1,169.56,169.44,23.776884]
[1729490547169,0.1,169.56,169.46,23.776884]
[1729490547371,0.1,169.56,169.47,20.0]
[1729490548073,0.1,169.56,169.46,23.776884]
[1729490548289,6.7269,169.57,169.47,20.0]
[1729490548780,0.1,169.56,169.47,20.0]
[1729490549181,6.5269,169.57,169.48,23.776884]
[1729490549381,6.5269,169.57,169.49,20.0]
[1729490549700,15.9756,169.56,169.49,20.0]
[1729490553303,15.9756,169.56,169.51,20.0]
[1729490554501,15.9756,169.56,169.53,20.0]
[1729490554676,15.0686,169.6,169.55,20.0]
[1729490555978,0.11210363,169.56,169.55,20.0]
[1729490556291,0.11210363,169.56,169.55,43.776884]
[1729490557982,0.11210363,169.56,169.55,44.186884]
[1729490560527,0.11210363,169.56,169.55,50.91168222]
[1729490560881,0.11210363,169.56,169.55,60.86236357]
[1729490561786,0.11210363,169.56,169.55,63.21911757]
[1729490561985,0.11602196,169.57,169.56,23.776884]
[1729490562187,0.11602196,169.57,169.56,44.186884]
[1729490564694,0.11602196,169.57,169.56,50.91168222]
[1729490564896,0.11602196,169.57,169.56,57.01717539]
[1729490565608,0.11602196,169.57,169.56,50.91168222]
[1729490566094,0.11602196,169.57,169.56,53.93199054]
[1729490566679,0.11602196,169.57,169.56,23.43030832]
[1729490567001,0.11602196,169.57,169.56,10.15510654]
[1729490567204,0.11602196,169.57,169.56,30.15510654]
[1729490568289,0.11602196,169.57,169.56,53.93199054]
[1729490570896,0.11602196,169.57,169.56,47.20719232]
[1729490571896,0.11602196,169.57,169.56,48.38596168]
[1729490572290,0.1276041,169.58,169.57,43.776884]
[1729490572506,0.1276041,169.58,169.57,64.68717539]
[1729490573010,0.1276041,169.58,169.57,58.58168222]
[1729490573511,0.10693426,169.59,169.57,58.58168222]
[1729490576000,0.11353632,169.58,169.57,60.93829822]
[1729490579596,0.11353632,169.58,169.57,67.04379139]
[1729490579992,0.10941818,169.59,169.57,71.3057018]
[1729490580190,0.10879281,169.6,169.59,43.776884]
[1729490580406,0.10879281,169.6,169.59,68.9490858]
[1729490581195,0.11107307,169.62,169.59,68.9490858]
[1729490581517,0.11107307,169.62,169.61,23.776884]
[1729490581724,0.11107307,169.62,169.61,58.58168222]
[1729490584223,0.1,169.79,169.65,23.776884]
[1729490584521,6.0628,169.77,169.69,23.776884]
[1729490585317,6.0628,169.77,169.69,24.556884]
[1729490586322,6.5998,169.76,169.69,24.556884]
[1729490587113,16.2569,169.75,169.7,20.0]
[1729490590814,16.2569,169.75,169.71,23.776884]
[1729490593031,16.2569,169.75,169.72,20.0]
[1729490596226,0.11778168,169.73,169.72,43.776884]
[1729490598122,0.12083288,169.77,169.72,43.776884]
[1729490598123,12.79462606,169.79,169.75,23.776884]
[1729490598314,12.79462606,169.79,169.76,20.0]
[1729490602531,12.79462606,169.79,169.76,22.92600981]
[1729490602730,5.30493156,169.79,169.76,22.92600981]
[1729490602903,0.11956195,169.8,169.78,20.0]
[1729490603109,0.12375244,169.81,169.79,23.776884]
[1729490603528,0.12375244,169.81,169.8,20.0]
[1729490603725,0.12375244,169.81,169.8,43.776884]
[1729490604324,0.12375244,169.81,169.79,23.776884]
[1729490604625,0.12375244,169.81,169.79,20.0]
[1729490605811,0.12375244,169.81,169.76,10.64600981]
[1729490606013,6.52635244,169.81,169.77,20.0]
[1729490607114,6.52635244,169.81,169.76,10.64600981]
[1729490607115,6.52635244,169.81,169.76,2.92600981]
[1729490607316,6.52635244,169.81,169.77,23.776884]
[1729490609332,6.52635244,169.81,169.78,20.0]
[1729490609832,6.52635244,169.81,169.7,6.10549317]
[1729490610136,6.52635244,169.81,169.73,20.0]
[1729490610511,6.52635244,169.81,169.71,20.0]
[1729490610716,6.52635244,169.81,169.74,20.0]
[1729490611332,6.52635244,169.81,169.76,20.0]
[1729490616011,0.10760795,169.77,169.76,20.0]
[1729490616937,0.10760795,169.77,169.74,2.94973039]
[1729490617119,0.10760795,169.77,169.73,23.776884]
[1729490617318,0.10760795,169.77,169.76,20.0]
[1729490619454,0.10760795,169.77,169.72,43.776884]
[1729490623326,0.10760795,169.77,169.71,7.15239655]
[1729490623532,0.10760795,169.77,169.72,23.776884]
[1729490624752,0.10760795,169.77,169.73,20.0]
[1729490630050,0.10760795,169.77,169.71,2.89048614]
[1729490630253,0.10760795,169.77,169.71,23.776884]
[1729490630568,0.20760795,169.77,169.7,20.0]
[1729490631434,0.10760795,169.77,169.7,20.0]
[1729490632041,0.10760795,169.77,169.71,23.776884]
[1729490632243,0.10760795,169.77,169.72,20.0]
[1729490636063,0.11207964,169.73,169.72,20.0]
[1729490636238,0.11207964,169.73,169.72,43.776884]
[1729490638034,0.11207964,169.73,169.72,49.88237717]
[1729490638242,0.00530517,169.73,169.72,51.35502025]
[1729490640864,0.00530517,169.73,169.72,45.24952708]
[1729490643166,0.12004978,169.74,169.73,23.776884]
[1729490643463,0.12004978,169.74,169.73,45.24952708]
[1729490644944,0.12004978,169.74,169.73,45.2495555]
[1729490646045,0.12004978,169.74,169.73,1.4726715]
[1729490648253,0.00572054,169.74,169.73,1.4726715]
[1729490657274,0.21255185,169.79,169.73,1.4726715]
[1729490657275,0.1,169.79,169.73,1.4726715]
[1729490657450,0.1,169.79,169.74,1.4726715]
[1729490657773,0.1,169.79,169.75,1.4726715]
[1729490658088,0.1,169.79,169.76,1.4726715]
[1729490658255,0.1,169.79,169.77,1.4726715]
[1729490658577,0.1,169.79,169.78,1.4726715]
[1729490659874,0.1,169.79,169.78,1.47269989]
[1729490662158,0.1,169.8,169.78,1.47269989]
[1729490662351,0.1,169.8,169.79,1.47269989]
[1729490662956,0.1,169.8,169.72,20.0]
[1729490663159,0.1,169.8,169.73,1.47275353]
[1729490663359,0.1,169.8,169.74,1.47275353]
[1729490663571,0.1,169.8,169.75,1.47275353]
[1729490663754,0.1,169.8,169.76,1.47275353]
[1729490663956,0.2,169.8,169.77,1.47275353]
[1729490664254,0.2,169.8,169.78,1.47275353]
[1729490664450,0.2,169.8,169.79,1.47275353]
[1729490665179,0.1,169.8,169.79,1.47275353]
[1729490669875,0.1,169.8,169.79,1.47276029]
[1729490670671,0.1,169.8,169.72,20.0]
[1729490670976,0.1,169.8,169.73,1.47275345]
[1729490671284,0.1,169.8,169.74,1.47275345]
[1729490671576,0.1,169.8,169.75,1.47275345]
[1729490671764,0.1,169.8,169.76,1.47275345]
[1729490671965,0.1,169.8,169.77,1.47275345]
[1729490672185,0.1,169.8,169.78,1.47275345]
[1729490672360,0.1,169.8,169.79,1.47275345]
[1729490673979,6.5026,169.81,169.72,20.0]
[1729490673980,0.1,169.79,169.72,20.0]
[1729490674182,0.1,169.79,169.73,1.47276268]
[1729490674379,0.1,169.79,169.74,1.47276268]
[1729490674581,0.1,169.79,169.75,1.47276268]
[1729490674770,0.1,169.79,169.76,1.47276268]
[1729490674975,0.1,169.79,169.77,1.47276268]
[1729490675281,0.1,169.79,169.78,1.47276268]
[1729490676795,0.2,169.79,169.78,1.47276268]
[1729490680183,0.1,169.79,169.78,1.47276268]
[1729490680383,0.2,169.79,169.78,1.47276268]
[1729490681682,0.2,169.79,169.7,20.0]
[1729490681683,0.1,169.76,169.7,20.0]
[1729490681890,0.1,169.76,169.71,1.47289508]
[1729490682080,0.1,169.76,169.72,1.47289508]
[1729490682283,0.1,169.76,169.73,1.47289508]
[1729490682494,0.1,169.76,169.74,1.47289508]
[1729490682664,0.1,169.76,169.69,17.80941839]
[1729490682665,0.1,169.74,169.69,17.80941839]
[1729490682867,0.1,169.72,169.7,1.4731605]
[1729490683165,0.1,169.72,169.62,6.10549317]
[1729490683166,0.1,169.69,169.63,1.02443568]
[1729490683363,0.00479701,169.69,169.64,1.47325454]
[1729490683565,16.3321,169.71,169.65,1.47325454]
[1729490683779,16.3321,169.71,169.66,1.47325454]
[1729490684077,16.3321,169.71,169.67,1.47325454]
[1729490684269,16.3321,169.71,169.68,1.47325454]
[1729490684599,16.3321,169.71,169.69,1.47325454]
[1729490684776,16.3321,169.71,169.7,1.47325454]
[1729490685088,0.1,169.74,169.7,1.47325454]
[1729490685267,0.1,169.74,169.71,1.47325454]
[1729490685470,0.1,169.74,169.72,1.47325454]
[1729490685787,0.1,169.74,169.73,1.47325454]
[1729490685982,15.1516,169.75,169.73,1.47325454]
[1729490685983,15.2516,169.75,169.73,1.47325454]
[1729490686291,15.2516,169.75,169.74,1.47325454]
[1729490688998,15.1516,169.75,169.74,1.47325454]
[1729490689291,15.2516,169.75,169.74,1.47325454]
[1729490691966,15.1516,169.75,169.74,1.47325454]
[1729490692182,0.1,169.77,169.74,1.47325454]
[1729490692384,0.1,169.78,169.75,1.47325454]
[1729490692584,0.1,169.78,169.76,1.47325454]
[1729490692784,0.1,169.78,169.68,20.0]
[1729490692785,0.1,169.78,169.77,1.47325454]
[1729490693692,0.1,169.79,169.77,1.47325454]
[1729490693989,0.1,169.79,169.68,20.0]
[1729490693990,0.1,169.79,169.78,1.47325454]
[1729490695068,15.5441,169.8,169.78,1.47325454]
[1729490695382,15.5441,169.8,169.68,20.09520299]
[1729490695383,0.1,169.82,169.79,1.47325454]
[1729490695585,0.1,169.81,169.8,1.47325454]
[1729490695971,0.1,169.81,169.73,23.776884]
[1729490696179,0.1,169.81,169.72,20.0]
[1729490696389,0.1,169.81,169.73,1.47264826]
[1729490696597,0.1,169.81,169.74,1.47264826]
[1729490696781,0.1,169.83,169.75,1.47264826]
[1729490696983,21.8832,169.84,169.76,1.47264826]
[1729490697302,21.8832,169.84,169.77,1.47264826]
[1729490697475,21.8832,169.84,169.78,1.47264826]
[1729490697685,21.8832,169.84,169.79,1.47264826]
[1729490697882,21.8832,169.84,169.8,1.47264826]
[1729490698100,15.5441,169.84,169.81,1.47264826]
[1729490698285,18.35479849,169.88,169.75,20.0]
[1729490698286,0.1,169.87,169.82,1.47264826]
[1729490698486,0.1,169.87,169.83,1.47264826]
[1729490698686,35.51,169.87,169.84,1.47264826]
[1729490698898,0.1,169.87,169.85,1.47264826]
[1729490699096,0.1,169.87,169.86,1.47264826]
[1729490699280,23.876884,169.87,169.86,1.47264826]
[1729490699881,23.876884,169.87,169.86,1.4724378]
[1729490702495,23.876884,169.87,169.86,1.47235259]
[1729490703403,0.1,169.83,169.74,15.9999]
[1729490703607,0.1,169.83,169.75,1.47244927]
[1729490703794,0.1,169.83,169.76,1.47244927]
[1729490704005,0.1,169.83,169.77,1.47244927]
[1729490704202,0.1,169.83,169.74,15.9999]
[1729490704397,0.1,169.83,169.75,1.47251095]
[1729490704601,0.1,169.83,169.76,1.47251095]
[1729490704786,0.1,169.83,169.77,1.47251095]
[1729490704987,0.1,169.83,169.78,1.47251095]
[1729490705189,0.1,169.83,169.79,1.47251095]
[1729490705389,0.1,169.84,169.8,1.47251095]
[1729490705591,0.1,169.84,169.81,1.47251095]
[1729490705889,0.1,169.84,169.82,1.47251095]
[1729490706116,0.1,169.84,169.83,1.47251095]
[1729490709904,0.1,169.84,169.83,1.4724528]
[1729490713513,0.1,169.84,169.83,1.47250906]
[1729490718319,47.053484,169.84,169.83,1.47250906]
[1729490719225,23.2766,169.84,169.83,1.47250906]
[1729490720709,0.1,169.81,169.74,3.00447726]
[1729490720906,0.1,169.81,169.75,1.47261448]
[1729490721109,0.1,169.81,169.76,1.47261448]
[1729490721414,0.1,169.79,169.77,1.47261448]
[1729490721600,0.1,169.79,169.78,1.47261448]
[1729490722135,0.1,169.8,169.78,1.47261448]
[1729490722332,0.1,169.8,169.79,1.47261448]
[1729490725125,0.1,169.81,169.79,1.47261448]
[1729490725334,0.1,169.81,169.8,1.47261448]
[1729490727113,0.1,169.83,169.8,1.47261448]
[1729490727315,0.1,169.83,169.81,1.47261448]
[1729490727528,0.1,169.83,169.82,1.47261448]
[1729490728228,23.1766,169.84,169.82,1.47261448]
[1729490728229,16.7419,169.84,169.82,1.47254717]
[1729490728530,16.7419,169.84,169.83,1.47254717]
[1729490730332,0.1,169.85,169.83,1.47254717]
[1729490730534,0.1,169.85,169.84,1.47254717]
[1729490731835,0.1,169.85,169.84,1.47245162]
[1729490734047,0.1,169.86,169.84,1.47245162]
[1729490734224,0.1,169.86,169.85,1.47245162]
[1729490735653,0.1,169.86,169.8,2.88420179]
[1729490735837,0.1,169.86,169.81,1.47244916]
[1729490736031,0.1,169.85,169.82,1.47244916]
[1729490736330,0.1,169.84,169.83,1.47244916]
[1729490741138,0.1,169.85,169.83,1.47244916]
[1729490741445,0.1,169.84,169.75,20.0]
[1729490741751,0.1,169.84,169.76,1.47245836]
[1729490741926,0.1,169.84,169.77,1.47245836]
[1729490742245,0.1,169.84,169.78,1.47245836]
[1729490742545,0.1,169.84,169.79,1.47245836]